[Event "Grand Prix Romania 1st Stage 2024"]
[Site "Bucuresti"]
[Date "2024.03.24"]
[Round "5.35"]
[White "Filip, Lucian-Ioan"]
[Black "Vasilescu, Lucian-Mihail"]
[Result "1-0"]
[ECO "E04"]
[WhiteElo "2359"]
[BlackElo "2116"]
[Annotator "RC"]
[PlyCount "101"]
[EventDate "2024.03.20"]
[EventType "swiss"]
[EventCountry "ROU"]
[SourceTitle "playchess.com"]
[Source "ChessBase"]
[SourceQuality "1"]
[TimeControl "900+5"]

1. d4 {[%emt 0:00:02]} d5 {[%emt 0:00:01]} 2. c4 {[%emt 0:00:06]} e6 {[%emt 0:00:02]} 3. Nf3 {[%emt 0:00:01]} Nf6 {[%emt 0:00:03]} 4. g3 {[%emt 0:00:01]} dxc4 {[%emt 0:00:02]} 5. Bg2 {[%emt 0:00:01]} a6 {[%emt 0:00:01]} 6. O-O {[%emt 0:00:06]} Nc6 {[%emt 0:00:02]} 7. Nbd2 {[%emt 0:00:32]} Nxd4 {[%emt 0:00:28]} 8. Nxc4 {[%emt 0:00:02]} Bc5 {[%emt 0:01:18]} 9. Nxd4 {[%emt 0:03:32]} Qxd4 {[%emt 0:00:19]} 10. Qxd4 {[%emt 0:00:16]} Bxd4 {[%emt 0:00:01]} 11. Rd1 {[%emt 0:11:21]} Ba7 {[%emt 0:00:43]} 12. Na5 {[%emt 0:00:00]} Nd5 {[%emt 0:02:04]} 13. e4 {[%emt 0:00:00]} Bb6 {[%emt 0:03:19]} 14. Nc4 {[%emt 0:00:00]} Nb4 {[%emt 0:00:02]} 15. Nxb6 {[%emt 0:00:00]} cxb6 {[%emt 0:00:02]} 16. Be3 {[%emt 0:00:00]} b5 {[%emt 0:02:24]} 17. Bc5 {[%emt 0:00:00]} Nc6 {[%emt 0:00:02]} 18. f4 {[%emt 0:00:00]} f6 {[%emt 0:02:57]} 19. Rd6 {[%emt 0:00:00]} e5 {[%emt 0:00:16]} 20. f5 {[%emt 0:00:00]} Rf8 {[%emt 0:01:06]} 21. Bf3 {[%emt 0:00:00]} g6 {[%emt 0:00:10]} 22. Rad1 {[%emt 0:00:00]} Rf7 {[%emt 0:00:05]} 23. g4 {[%emt 0:00:01]} Bd7 {[%emt 0:00:04]} 24. Kf2 {[%emt 0:00:13]} Rc8 {[%emt 0:00:01]} 25. b4 {[%emt 0:00:28]} a5 {[%emt 0:00:08]} 26. a3 {[%emt 0:00:08]} axb4 {[%emt 0:00:03]} 27. axb4 {[%emt 0:00:01]} Ra8 {[%emt 0:00:00]} 28. Be2 {[%emt 0:00:12]} Ra2 {[%emt 0:00:25]} 29. R1d2 {[%emt 0:00:03]} Rxd2 30. Rxd2 {[%emt 0:00:01]} Nd4 {[%emt 0:00:36]} 31. Bxd4 {[%emt 0:00:16]} exd4 {[%emt 0:00:01]} 32. Rxd4 {[%emt 0:00:00]} Bc6 {[%emt 0:00:02]} 33. Bd3 {[%emt 0:00:16]} Rd7 {[%emt 0:00:12]} 34. Rxd7 {[%emt 0:00:07]} Kxd7 {[%emt 0:00:01]} 35. fxg6 {[%emt 0:00:06]} hxg6 {[%emt 0:00:02]} 36. e5 {[%emt 0:00:01]} g5 {[%emt 0:00:14]} 37. exf6 {[%emt 0:00:17]} Ke6 38. Kg3 {[%emt 0:00:00]} Kxf6 {[%emt 0:00:02]} 39. h4 {[%emt 0:00:00]} gxh4+ {[%emt 0:00:13]} 40. Kxh4 {[%emt 0:00:00]} Ke5 {[%emt 0:00:21]} 41. g5 {[%emt 0:00:00]} Kd4 {[%emt 0:00:01]} 42. Bf5 {[%emt 0:00:09]} Be8 {[%emt 0:00:07]} 43. Bg4 {[%emt 0:00:09]} Kc3 {[%emt 0:00:20]} 44. Bh5 {[%emt 0:00:01]} Bc6 {[%emt 0:00:14]} 45. g6 {[%emt 0:00:02]} Kxb4 {[%emt 0:00:07]} 46. g7 {[%emt 0:00:02]} Bd5 {[%emt 0:00:02]} 47. Kg5 {[%emt 0:00:02]} Kc3 {[%emt 0:00:17]} 48. Kf6 {[%emt 0:00:30]} Bg8 49. Bf7 {[%emt 0:00:05]} Bh7 50. Kg5 {[%emt 0:00:05]} b4 {[%emt 0:00:15]} 51. Kh6 1-0

[Event "Grand Prix Romania 1st Stage 2024"]
[Site "Bucuresti"]
[Date "2024.03.24"]
[Round "5.36"]
[White "Sabarez, Iulian"]
[Black "Bulau, Andrei-Cristian"]
[Result "1/2-1/2"]
[ECO "B33"]
[WhiteElo "1945"]
[BlackElo "2142"]
[Annotator "RC"]
[PlyCount "156"]
[EventDate "2024.03.20"]
[EventType "swiss"]
[EventCountry "ROU"]
[SourceTitle "playchess.com"]
[Source "ChessBase"]
[SourceQuality "1"]
[TimeControl "900+5"]

1. e4 {[%emt 0:00:08]} c5 {[%emt 0:00:08]} 2. Nf3 {[%emt 0:00:04]} Nc6 {[%emt 0:00:01]} 3. d4 {[%emt 0:00:02]} cxd4 {[%emt 0:00:01]} 4. Nxd4 {[%emt 0:00:03]} Nf6 {[%emt 0:00:01]} 5. Nc3 {[%emt 0:00:01]} e5 {[%emt 0:00:02]} 6. Ndb5 {[%emt 0:00:02]} d6 {[%emt 0:00:02]} 7. Bg5 {[%emt 0:00:09]} a6 {[%emt 0:00:02]} 8. Na3 {[%emt 0:00:01]} b5 {[%emt 0:00:01]} 9. Nd5 {[%emt 0:00:02]} Be7 {[%emt 0:00:01]} 10. Bxf6 {[%emt 0:00:02]} Bxf6 {[%emt 0:00:01]} 11. c4 {[%emt 0:00:02]} b4 {[%emt 0:00:14]} 12. Nc2 {[%emt 0:00:01]} O-O {[%emt 0:00:03]} 13. g3 {[%emt 0:00:09]} Bg5 {[%emt 0:00:28]} 14. Bg2 {[%emt 0:01:10]} Be6 {[%emt 0:00:15]} 15. O-O {[%emt 0:00:36]} Rb8 {[%emt 0:00:18]} 16. Qd3 {[%emt 0:00:52]} Qa5 {[%emt 0:00:54]} 17. b3 {[%emt 0:00:35]} Bxd5 {[%emt 0:00:23]} 18. Qxd5 {[%emt 0:03:04]} Qxd5 {[%emt 0:00:18]} 19. cxd5 {[%emt 0:00:02]} Na5 {[%emt 0:00:40]} 20. Bh3 {[%emt 0:00:56]} g6 {[%emt 0:03:59]} 21. Rae1 {[%emt 0:02:22]} Rfe8 {[%emt 0:00:39]} 22. Re2 {[%emt 0:00:36]} Re7 {[%emt 0:00:07]} 23. Ne1 {[%emt 0:00:32]} Rc7 {[%emt 0:00:40]} 24. f4 {[%emt 0:00:42]} Bf6 {[%emt 0:00:14]} 25. Nd3 {[%emt 0:00:21]} exf4 {[%emt 0:00:02]} 26. gxf4 {[%emt 0:00:18]} Bd4+ {[%emt 0:00:02]} 27. Kg2 {[%emt 0:00:11]} Rb5 {[%emt 0:01:43]} 28. e5 {[%emt 0:00:54]} dxe5 {[%emt 0:00:41]} 29. d6 {[%emt 0:00:04]} Rc3 {[%emt 0:00:12]} 30. d7 {[%emt 0:00:33]} Nc6 {[%emt 0:03:11]} 31. Nxe5 {[%emt 0:00:22]} Bxe5 {[%emt 0:01:17]} 32. fxe5 {[%emt 0:01:17]} Rd3 {[%emt 0:00:01]} 33. e6 {[%emt 0:00:25]} Rg5+ {[%emt 0:00:02]} 34. Kh1 {[%emt 0:00:10]} fxe6 {[%emt 0:00:02]} 35. Rxe6 {[%emt 0:00:23]} Rc5 {[%emt 0:00:33]} 36. Bg2 {[%emt 0:00:34]} Rxd7 {[%emt 0:00:19]} 37. Bxc6 {[%emt 0:00:25]} Rd2 38. Bb7 {[%emt 0:00:00]} Rcc2 {[%emt 0:00:02]} 39. Rxa6 {[%emt 0:00:00]} Rxh2+ {[%emt 0:00:08]} 40. Kg1 {[%emt 0:00:01]} Kg7 {[%emt 0:00:14]} 41. Ra7 {[%emt 0:00:09]} Kh6 {[%emt 0:00:03]} 42. Ra4 {[%emt 0:00:06]} Rh4 {[%emt 0:00:08]} 43. Rf2 {[%emt 0:00:06]} Rc1+ {[%emt 0:00:09]} 44. Kg2 {[%emt 0:00:05]} Rc7 {[%emt 0:00:02]} 45. Bf3 {[%emt 0:00:04]} Rc5 {[%emt 0:00:01]} 46. Re2 {[%emt 0:00:06]} Rg5+ {[%emt 0:00:23]} 47. Kf2 {[%emt 0:00:05]} Rf5 {[%emt 0:00:01]} 48. Re3 {[%emt 0:00:04]} g5 {[%emt 0:00:02]} 49. Ra6+ {[%emt 0:00:02]} Kg7 {[%emt 0:00:03]} 50. Re7+ {[%emt 0:00:08]} Rf7 {[%emt 0:00:03]} 51. Rxf7+ {[%emt 0:00:04]} Kxf7 {[%emt 0:00:01]} 52. Rb6 {[%emt 0:00:05]} Rf4 {[%emt 0:00:06]} 53. Kg2 {[%emt 0:00:05]} g4 {[%emt 0:00:03]} 54. Be2 {[%emt 0:00:03]} h5 {[%emt 0:00:02]} 55. Bc4+ {[%emt 0:00:04]} Ke7 {[%emt 0:00:01]} 56. Rxb4 {[%emt 0:00:01]} Kf6 {[%emt 0:00:01]} 57. Rb5 {[%emt 0:00:05]} h4 {[%emt 0:00:02]} 58. Rd5 {[%emt 0:00:09]} Re4 {[%emt 0:00:05]} 59. Rd2 {[%emt 0:00:03]} Kg5 {[%emt 0:00:01]} 60. a4 {[%emt 0:00:06]} Re1 {[%emt 0:00:01]} 61. a5 {[%emt 0:00:02]} h3+ {[%emt 0:00:03]} 62. Kg3 {[%emt 0:00:06]} Rg1+ {[%emt 0:00:05]} 63. Kh2 {[%emt 0:00:00]} Ra1 {[%emt 0:00:02]} 64. a6 {[%emt 0:00:15]} Kh4 {[%emt 0:00:01]} 65. Rd4 {[%emt 0:00:08]} Ra2+ {[%emt 0:00:01]} 66. Kg1 {[%emt 0:00:01]} Kg3 {[%emt 0:00:10]} 67. Rd3+ {[%emt 0:00:01]} Kf4 {[%emt 0:00:01]} 68. Rd4+ {[%emt 0:00:10]} Kg3 {[%emt 0:00:01]} 69. Rd3+ {[%emt 0:00:05]} Kf4 {[%emt 0:00:07]} 70. Rd4+ {[%emt 0:00:06]} Kg3 {[%emt 0:00:01]} 71. Bf1 {[%emt 0:00:09]} h2+ {[%emt 0:00:49]} 72. Kh1 {[%emt 0:00:01]} Ra1 {[%emt 0:00:01]} 73. Rd3+ {[%emt 0:00:08]} Kf2 {[%emt 0:00:23]} 74. Rd2+ {[%emt 0:00:03]} Kxf1 {[%emt 0:00:04]} 75. Kxh2 {[%emt 0:00:04]} Rxa6 {[%emt 0:00:02]} 76. Kg3 {[%emt 0:00:06]} Ke1 {[%emt 0:00:01]} 77. Rd4 {[%emt 0:00:07]} Ra3 {[%emt 0:00:07]} 78. Kxg4 {[%emt 0:00:04]} Rxb3 {[%emt 0:00:01]} 1/2-1/2

[Event "Grand Prix Romania 1st Stage 2024"]
[Site "Bucuresti"]
[Date "2024.03.24"]
[Round "5.37"]
[White "Toma, Radu-Cristian"]
[Black "Tanasie, Cosmin"]
[Result "1-0"]
[ECO "A43"]
[WhiteElo "2386"]
[BlackElo "2009"]
[Annotator "RC"]
[PlyCount "102"]
[EventDate "2024.03.20"]
[EventType "swiss"]
[EventCountry "ROU"]
[SourceTitle "playchess.com"]
[Source "ChessBase"]
[SourceQuality "1"]
[TimeControl "900+5"]

1. d4 {[%emt 0:00:02]} c5 {[%emt 0:00:01]} 2. dxc5 {[%emt 0:00:04]} Qa5+ {[%emt 0:00:01]} 3. Nd2 {[%emt 0:00:07]} Qxc5 {[%emt 0:00:02]} 4. a3 {[%emt 0:00:19]} g6 {[%emt 0:00:41]} 5. b4 {[%emt 0:00:15]} Qc7 {[%emt 0:00:55]} 6. Bb2 {[%emt 0:00:08]} Nf6 {[%emt 0:00:02]} 7. Ngf3 {[%emt 0:02:36]} Bg7 {[%emt 0:00:05]} 8. e3 {[%emt 0:00:13]} d6 {[%emt 0:00:20]} 9. Be2 {[%emt 0:00:18]} O-O {[%emt 0:00:03]} 10. O-O {[%emt 0:00:02]} a5 {[%emt 0:01:14]} 11. c4 {[%emt 0:00:17]} Na6 {[%emt 0:00:29]} 12. Qb3 {[%emt 0:00:09]} Be6 {[%emt 0:01:06]} 13. Nd4 {[%emt 0:00:23]} Qb6 {[%emt 0:02:05]} 14. Nxe6 {[%emt 0:00:19]} fxe6 {[%emt 0:00:02]} 15. c5 {[%emt 0:01:42]} dxc5 {[%emt 0:00:14]} 16. b5 {[%emt 0:01:16]} Nc7 {[%emt 0:00:20]} 17. Nc4 {[%emt 0:01:20]} Qxb5 {[%emt 0:00:01]} 18. Qxb5 {[%emt 0:00:02]} Nxb5 {[%emt 0:00:01]} 19. Nb6 {[%emt 0:00:01]} Ra6 {[%emt 0:00:01]} 20. Na4 {[%emt 0:00:19]} Nc7 {[%emt 0:00:41]} 21. Nxc5 {[%emt 0:02:29]} Rc6 {[%emt 0:00:32]} 22. Rac1 {[%emt 0:00:05]} b6 {[%emt 0:00:55]} 23. Na4 {[%emt 0:00:44]} Rxc1 {[%emt 0:00:06]} 24. Rxc1 {[%emt 0:00:01]} Ncd5 {[%emt 0:00:24]} 25. Rc6 {[%emt 0:00:51]} b5 {[%emt 0:00:13]} 26. Nc5 {[%emt 0:00:11]} b4 {[%emt 0:00:24]} 27. Nxe6 {[%emt 0:00:11]} Rb8 {[%emt 0:00:53]} 28. a4 {[%emt 0:01:03]} Nc3 {[%emt 0:02:52]} 29. Bc4 {[%emt 0:00:07]} Kh8 {[%emt 0:02:03]} 30. Bb3 {[%emt 0:00:01]} Nfe4 {[%emt 0:00:29]} 31. Nxg7 {[%emt 0:00:04]} Kxg7 {[%emt 0:00:01]} 32. Re6 {[%emt 0:00:49]} Nd2 {[%emt 0:00:12]} 33. Rxe7+ {[%emt 0:00:03]} Kf8 {[%emt 0:00:01]} 34. Rf7+ {[%emt 0:00:05]} Ke8 {[%emt 0:00:01]} 35. Rxh7 {[%emt 0:00:07]} Rb6 {[%emt 0:00:14]} 36. Bxc3 {[%emt 0:00:46]} bxc3 {[%emt 0:00:01]} 37. Bc2 {[%emt 0:00:01]} Rb2 {[%emt 0:00:08]} 38. Bxg6+ {[%emt 0:00:01]} Kd8 {[%emt 0:00:01]} 39. h4 {[%emt 0:00:16]} Rb6 {[%emt 0:00:07]} 40. Rh8+ {[%emt 0:00:10]} Kc7 {[%emt 0:00:04]} 41. Bf5 {[%emt 0:00:01]} Rf6 {[%emt 0:00:11]} 42. Bg4 {[%emt 0:00:15]} Rc6 {[%emt 0:00:05]} 43. Rc8+ {[%emt 0:00:05]} Kb7 {[%emt 0:00:19]} 44. Rxc6 {[%emt 0:00:02]} Kxc6 {[%emt 0:00:00]} 45. Bd1 {[%emt 0:00:01]} Ne4 {[%emt 0:00:00]} 46. Kf1 {[%emt 0:00:08]} Nc5 {[%emt 0:00:04]} 47. h5 {[%emt 0:00:11]} Ne6 {[%emt 0:00:06]} 48. h6 {[%emt 0:00:03]} Nf8 {[%emt 0:00:05]} 49. Bc2 {[%emt 0:00:04]} Kc5 {[%emt 0:00:01]} 50. Ke2 {[%emt 0:00:07]} Kc4 {[%emt 0:00:01]} 51. g4 {[%emt 0:00:04]} Kd5 {[%emt 0:00:23]} 1-0

[Event "Grand Prix Romania 1st Stage 2024"]
[Site "Bucuresti"]
[Date "2024.03.24"]
[Round "5.38"]
[White "Manea, Alexandru"]
[Black "Veneteanu, Mihai"]
[Result "1/2-1/2"]
[ECO "A28"]
[WhiteElo "2287"]
[BlackElo "2026"]
[Annotator "RC"]
[PlyCount "65"]
[EventDate "2024.03.20"]
[EventType "swiss"]
[EventCountry "ROU"]
[SourceTitle "playchess.com"]
[Source "ChessBase"]
[SourceQuality "1"]
[TimeControl "900+5"]

1. c4 {[%emt 0:00:15]} e5 {[%emt 0:00:14]} 2. e3 {[%emt 0:00:11]} Nf6 {[%emt 0:00:15]} 3. Nc3 {[%emt 0:00:03]} Bb4 {[%emt 0:00:45]} 4. Qc2 {[%emt 0:00:06]} Nc6 {[%emt 0:00:13]} 5. Nf3 {[%emt 0:00:03]} O-O {[%emt 0:00:21]} 6. Be2 {[%emt 0:00:03]} d5 {[%emt 0:00:15]} 7. cxd5 {[%emt 0:00:04]} Nxd5 {[%emt 0:00:02]} 8. O-O {[%emt 0:00:25]} Be6 {[%emt 0:00:48]} 9. a3 {[%emt 0:00:09]} Be7 {[%emt 0:00:30]} 10. b4 {[%emt 0:00:23]} a6 {[%emt 0:00:36]} 11. Bb2 {[%emt 0:00:02]} f6 {[%emt 0:00:18]} 12. Na4 {[%emt 0:00:20]} Qd7 {[%emt 0:01:31]} 13. Rfd1 {[%emt 0:00:15]} Rfd8 {[%emt 0:00:21]} 14. d4 {[%emt 0:01:02]} exd4 {[%emt 0:00:04]} 15. Nxd4 {[%emt 0:00:02]} Nxd4 {[%emt 0:00:05]} 16. Rxd4 {[%emt 0:00:04]} Qe8 {[%emt 0:00:39]} 17. Bd3 {[%emt 0:01:03]} Qh5 {[%emt 0:00:47]} 18. Nc5 {[%emt 0:00:18]} Bxc5 {[%emt 0:00:02]} 19. Qxc5 {[%emt 0:00:03]} c6 {[%emt 0:00:54]} 20. Rc1 {[%emt 0:03:25]} Rd7 {[%emt 0:00:07]} 21. g3 {[%emt 0:01:47]} Qf3 {[%emt 0:02:48]} 22. Be4 {[%emt 0:01:48]} Qe2 {[%emt 0:01:08]} 23. Qc2 {[%emt 0:00:23]} Qxc2 {[%emt 0:00:42]} 24. Rxc2 {[%emt 0:00:03]} Rad8 {[%emt 0:00:02]} 25. Rcd2 {[%emt 0:00:51]} Nc7 {[%emt 0:00:55]} 26. Bc2 {[%emt 0:00:33]} Rxd4 {[%emt 0:00:17]} 27. Rxd4 {[%emt 0:00:01]} Rxd4 {[%emt 0:00:01]} 28. Bxd4 {[%emt 0:00:01]} Nb5 {[%emt 0:00:28]} 29. Bb2 {[%emt 0:00:01]} Nd6 {[%emt 0:00:27]} 30. f3 {[%emt 0:00:47]} Nc4 {[%emt 0:00:01]} 31. Bd4 {[%emt 0:00:05]} Nxa3 {[%emt 0:00:21]} 32. Bd3 {[%emt 0:00:01]} Nb5 {[%emt 0:01:02]} 33. Bxb5 {[%emt 0:03:13]} 1/2-1/2

[Event "Grand Prix Romania 1st Stage 2024"]
[Site "Bucuresti"]
[Date "2024.03.24"]
[Round "5.39"]
[White "Cosma, Ioan"]
[Black "Capata, Ion"]
[Result "1-0"]
[ECO "D13"]
[WhiteElo "2316"]
[BlackElo "2038"]
[Annotator "RC"]
[PlyCount "94"]
[EventDate "2024.03.20"]
[EventType "swiss"]
[EventCountry "ROU"]
[SourceTitle "playchess.com"]
[Source "ChessBase"]
[SourceQuality "1"]
[TimeControl "900+5"]

1. d4 {[%emt 0:00:03]} d5 {[%emt 0:00:01]} 2. c4 {[%emt 0:00:04]} c6 {[%emt 0:00:08]} 3. cxd5 {[%emt 0:00:26]} cxd5 {[%emt 0:00:02]} 4. Nc3 {[%emt 0:00:04]} Nf6 {[%emt 0:00:20]} 5. Nf3 {[%emt 0:00:13]} e6 {[%emt 0:00:10]} 6. Bf4 {[%emt 0:00:19]} Bd6 {[%emt 0:00:10]} 7. Bg3 {[%emt 0:00:22]} Bxg3 {[%emt 0:00:35]} 8. hxg3 {[%emt 0:00:03]} Nc6 {[%emt 0:00:08]} 9. e3 {[%emt 0:00:07]} O-O {[%emt 0:00:31]} 10. Bd3 {[%emt 0:00:18]} h6 {[%emt 0:00:16]} 11. Rc1 {[%emt 0:00:22]} Re8 {[%emt 0:00:13]} 12. Ne5 {[%emt 0:00:21]} Nxe5 {[%emt 0:00:20]} 13. dxe5 {[%emt 0:00:02]} Nd7 {[%emt 0:00:01]} 14. f4 {[%emt 0:00:05]} f5 {[%emt 0:01:34]} 15. Nb5 {[%emt 0:00:43]} Rb8 {[%emt 0:01:20]} 16. Nd6 {[%emt 0:00:58]} Rf8 {[%emt 0:00:10]} 17. O-O {[%emt 0:00:44]} Qb6 {[%emt 0:00:14]} 18. Qd2 {[%emt 0:00:12]} Nc5 {[%emt 0:00:03]} 19. Bb1 {[%emt 0:00:24]} Ne4 {[%emt 0:01:56]} 20. Bxe4 {[%emt 0:00:07]} dxe4 {[%emt 0:00:17]} 21. Qd4 {[%emt 0:00:11]} Qxd4 {[%emt 0:00:31]} 22. exd4 {[%emt 0:00:02]} Bd7 {[%emt 0:00:10]} 23. Rc7 {[%emt 0:00:22]} Bc6 {[%emt 0:00:04]} 24. Kf2 {[%emt 0:00:08]} Rfd8 {[%emt 0:00:44]} 25. Rc1 {[%emt 0:00:20]} Kf8 {[%emt 0:01:41]} 26. Ke3 {[%emt 0:00:05]} a6 {[%emt 0:00:06]} 27. b3 {[%emt 0:00:12]} Kg8 {[%emt 0:01:05]} 28. a4 {[%emt 0:00:16]} Kh7 {[%emt 0:00:28]} 29. Re7 {[%emt 0:00:26]} Rd7 {[%emt 0:00:37]} 30. Rxd7 {[%emt 0:01:05]} Bxd7 {[%emt 0:00:02]} 31. Rc7 {[%emt 0:00:30]} Bc6 {[%emt 0:00:01]} 32. b4 {[%emt 0:01:05]} Bd5 {[%emt 0:00:49]} 33. Nc8 {[%emt 0:00:42]} Bb3 {[%emt 0:00:48]} 34. Nb6 {[%emt 0:00:11]} Kg6 {[%emt 0:00:21]} 35. Nd7 {[%emt 0:00:30]} Rg8 {[%emt 0:00:20]} 36. Nc5 {[%emt 0:00:10]} Bd5 {[%emt 0:00:04]} 37. a5 {[%emt 0:00:42]} Kh5 {[%emt 0:00:13]} 38. Re7 {[%emt 0:00:44]} Kg4 {[%emt 0:00:12]} 39. Nxe6 {[%emt 0:00:13]} g5 {[%emt 0:00:53]} 40. Nc7 {[%emt 0:00:10]} Bc4 {[%emt 0:00:36]} 41. d5 {[%emt 0:01:18]} Kxg3 {[%emt 0:00:03]} 42. fxg5 {[%emt 0:00:03]} hxg5 {[%emt 0:00:04]} 43. d6 {[%emt 0:00:21]} Kxg2 {[%emt 0:00:19]} 44. d7 {[%emt 0:03:02]} f4+ {[%emt 0:00:05]} 45. Kxe4 {[%emt 0:00:05]} f3 {[%emt 0:00:05]} 46. Re8 {[%emt 0:00:05]} f2 {[%emt 0:00:05]} 47. d8=Q {[%emt 0:00:05]} f1=Q {[%emt 0:00:05]} 1-0

[Event "Grand Prix Romania 1st Stage 2024"]
[Site "Bucuresti"]
[Date "2024.03.24"]
[Round "6.1"]
[White "Bologan, Victor"]
[Black "Sarana, Alexey"]
[Result "0-1"]
[ECO "B55"]
[WhiteElo "2594"]
[BlackElo "2699"]
[Annotator "TA"]
[PlyCount "80"]
[EventDate "2024.03.20"]
[EventType "swiss"]
[EventCountry "ROU"]
[SourceTitle "playchess.com"]
[Source "ChessBase"]
[SourceQuality "1"]
[TimeControl "900+5"]

{[%evp 9,79,-4,0,0,36,5,10,3,35,45,45,51,71,37,39,47,65,57,33,31,50,56,47,39,51,49,56,45,58,41,53,22,24,0,22,-66,0,0,-12,-19,-12,-14,-14,-21,0,-45,-8,-64,-7,0,-9,-8,-14,-165,-169,-429,-429,-441,-393,-430,-414,-29969,-29969,-29994,-29995,-29995,-29996,-29996,-29997,-29998,-29999,-29999]} 1. e4 {[%emt 0:00:02]} c5 {[%emt 0:00:01]} 2. Nf3 {[%emt 0:00:02]} d6 {[%emt 0:00:05]} 3. d4 {[%emt 0:00:06]} cxd4 {[%emt 0:00:02]} 4. Nxd4 {[%emt 0:00:01]} Nf6 {[%emt 0:00:01]} 5. Bd3 {[%emt 0:00:01]} g6 {[%emt 0:00:07]} 6. c4 {[%emt 0:00:02]} Bg7 {[%emt 0:00:02]} 7. Nc3 {[%emt 0:00:02]} Nc6 {[%emt 0:00:02]} 8. Nde2 {[%emt 0:00:03] The position is equal.} Qc7 {[%emt 0:00:16]} 9. O-O {[%emt 0:00:06]} Ne5 {[%emt 0:00:05]} 10. b3 {[%emt 0:00:04]} a6 {[%emt 0:00:12]} 11. a4 {[%emt 0:00:18]} O-O {[%emt 0:00:04]} 12. h3 {[%emt 0:00:24]} Rd8 {[%emt 0:00:36]} 13. Be3 {[%emt 0:00:14]} b6 {[%emt 0:00:26]} 14. Rc1 {[%emt 0:00:17]} Nxd3 {[%emt 0:00:03]} 15. Qxd3 {[%emt 0:00:02]} e6 {[%emt 0:00:03] Repels Nd5} 16. Rfd1 {[%emt 0:00:20]} Bb7 {[%emt 0:00:10]} 17. Bd4 {[%emt 0:00:15]} Rab8 {[%emt 0:00:50]} 18. f3 {[%emt 0:02:03]} Ba8 {[%emt 0:00:11]} 19. Qd2 {[%emt 0:00:11]} Qe7 {[%emt 0:01:48]} 20. Qb2 {[%emt 0:00:25]} Bh6 {[%emt 0:01:01]} 21. Rc2 {[%emt 0:00:17]} Nh5 {[%emt 0:00:19]} 22. g4 {[%emt 0:01:54]} ({White should play} 22. Bf2 $11) 22... Nf4 {[%emt 0:00:38]} (22... Ng7 $1 $15) 23. Nxf4 $11 {[%emt 0:00:25]} Bxf4 {[%emt 0:00:02]} 24. Ne2 {[%emt 0:00:40]} Bg5 {[%emt 0:00:01]} 25. Ng3 {[%emt 0:01:22]} e5 {[%emt 0:03:52]} 26. Bf2 {[%emt 0:01:41]} b5 {[%emt 0:00:03]} 27. axb5 (27. cxb5 $5 axb5 28. a5 $15) 27... axb5 {[%emt 0:00:01]} 28. c5 {[%emt 0:01:11]} dxc5 {[%emt 0:01:03]} (28... Qf6 $1 $15 29. Kg2 dxc5 30. Rxd8+ Rxd8 31. Rxc5 Rd3) 29. Rxd8+ {[%emt 0:00:04]} Rxd8 {[%emt 0:00:01]} 30. Rxc5 {[%emt 0:00:07]} Qf6 $36 {[%emt 0:02:26][%mdl 2048] Black is more active.} 31. Qxe5 $2 {[%emt 0:00:27] [#] White does not recover from this.} (31. Qe2 $11) 31... Qxf3 $1 $19 {[%emt 0:00:55]} 32. Qxg5 {[%emt 0:00:37]} (32. Rc3 {was the only chance.} Rd1+ 33. Nf1 Qxe4 34. Rc8+ Rd8 35. Rxd8+ Bxd8 36. Qxe4 Bxe4 37. b4) 32... Rd1+ {[%emt 0:00:01]} 33. Nf1 {[%emt 0:00:02]} Bxe4 {[%emt 0:00:03][%csl Ge4][%cal Rf3h1]} 34. Rc8+ {[%emt 0:00:54]} (34. Rxb5 $2 Qh1#) 34... Kg7 {[%emt 0:00:01][%csl Ge4][%cal Rf3h1]} 35. Qe5+ {[%emt 0:00:45]} (35. Qxb5 $2 Qh1#) (35. Bd4+ $19 Rxd4 36. Qe5+ Kh6 (36... Qf6 $2 37. Rg8+ Kxg8 38. Qxf6 $18) 37. Qg3 (37. g5+ $2 Kh5 $19)) 35... Kh6 {[%emt 0:00:02][%csl Ge4][%cal Rf3g2] Black mates.} 36. Qh2 {[%emt 0:02:05] [#]} Rxf1+ $1 {[%emt 0:00:18][%mdl 512]} 37. Kxf1 {[%emt 0:00:05] [#]} Bd3+ $1 {[%emt 0:00:01]} 38. Kg1 {[%emt 0:00:14]} Qd1+ {[%emt 0:00:02]} 39. Be1 {[%emt 0:00:03]} Qxe1+ {[%emt 0:00:02]} 40. Kg2 {[%emt 0:00:03]} Be4# {[%emt 0:00:01] Weighted Error Value: White=0.41/Black=0.09 (flawless) .  Mistake:       	White=4     	Black=2      Inaccurate:     	White=4     	Black=2      OK:         	White=6     	Black=8      Best:        	White=4     	Black=4      Strong:       	---       	Black=1} 0-1

[Event "Grand Prix Romania 1st Stage 2024"]
[Site "Bucuresti"]
[Date "2024.03.24"]
[Round "6.2"]
[White "Kozak, Adam"]
[Black "Safarli, Eltaj"]
[Result "1-0"]
[ECO "C50"]
[WhiteElo "2607"]
[BlackElo "2614"]
[Annotator "TA"]
[PlyCount "51"]
[EventDate "2024.03.20"]
[EventType "swiss"]
[EventCountry "ROU"]
[SourceTitle "playchess.com"]
[Source "ChessBase"]
[SourceQuality "1"]
[TimeControl "900+5"]

{[%evp 9,51,11,21,20,21,17,21,12,11,14,18,27,17,23,22,18,25,14,12,15,9,15,18,9,31,23,31,13,17,19,20,10,31,7,6,0,0,0,140,142,491,495,552,546]} 1. e4 {[%emt 0:00:02]} e5 {[%emt 0:00:07]} 2. Nf3 {[%emt 0:00:02]} Nc6 {[%emt 0:00:02]} 3. Bc4 {[%emt 0:00:02]} Bc5 {[%emt 0:00:04]} 4. a4 {[%emt 0:00:03]} Nf6 {[%emt 0:00:20]} 5. d3 {[%emt 0:00:01]} h6 {[%emt 0:00:14]} 6. a5 {[%emt 0:00:06]} O-O {[%emt 0:00:10]} 7. O-O {[%emt 0:00:25]} d6 {[%emt 0:00:23]} 8. h3 {[%emt 0:01:03] Die Stellung ist ausgeglichen.} a6 {[%emt 0:00:14]} 9. c3 {[%emt 0:00:03]} Be6 {[%emt 0:00:19]} 10. Bxe6 {[%emt 0:00:02]} fxe6 {[%emt 0:00:01]} 11. b4 {[%emt 0:00:08]} Ba7 {[%emt 0:00:03]} 12. Be3 {[%emt 0:00:02]} Bxe3 {[%emt 0:02:46]} 13. fxe3 {[%emt 0:00:02]} b6 {[%emt 0:00:27]} 14. axb6 {[%emt 0:04:45]} cxb6 {[%emt 0:00:02]} 15. Nbd2 {[%emt 0:00:01]} b5 {[%emt 0:01:02]} 16. d4 {[%emt 0:00:19]} a5 {[%emt 0:00:44]} 17. Qb3 {[%emt 0:00:50]} Re8 {[%emt 0:00:07]} 18. bxa5 {[%emt 0:01:51]} Rxa5 {[%emt 0:00:02]} 19. Rxa5 {[%emt 0:00:56]} Qxa5 {[%emt 0:00:03]} 20. Rb1 {[%emt 0:00:02]} Kh7 {[%emt 0:00:46]} (20... d5 {vereinfacht} 21. Nxe5 Nxe5 22. dxe5 Nxe4 23. Nxe4 dxe4 24. Qxb5 Qxb5 25. Rxb5 Rc8) 21. Kh2 {[%emt 0:01:23]} d5 {[%emt 0:02:49]} 22. Qxb5 {[%emt 0:01:14]} Qxc3 {[%emt 0:00:02]} 23. Rb3 {[%emt 0:00:02]} Qc1 {[%emt 0:01:48]} (23... Qc2 $11) 24. Qd3 $16 {[%emt 0:00:04]} ({Ein No Go ist} 24. dxe5 $6 Nxe4 25. Nxe4 dxe4 $11) 24... Kh8 $2 {[%emt 0:00:57][%mdl 8192] [#]} (24... Qd1 $16) 25. Rb1 $18 {[%emt 0:00:17]} ({Nicht} 25. Nxe5 Nxe5 26. dxe5 Nd7 $14) (25. dxe5 Nd7 $14) 25... dxe4 {[%emt 0:01:22]} 26. Nxe4 {[%emt 0:00:13] Gewichteter Fehlerwert: Weiß=0.04 (makellos) /Schwarz=0.42.  Verlustzug:     	---       	Schwarz=1     Fehler:       	---       	Schwarz=1     OK:         	Weiß=8     	Schwarz=8     Bester:       	Weiß=2     	---} 1-0